[Event "46th GER-ch Rapid 2020"]
[Site "Plochingen"]
[Date "2020.09.19"]
[Round "1.1"]
[White "Stern, Rene"]
[Black "Schulz, Karsten"]
[Result "1/2-1/2"]
[ECO "B07"]
[WhiteElo "2517"]
[BlackElo "2294"]
[Annotator "RC"]
[PlyCount "173"]
[EventDate "2020.09.19"]
[EventType "swiss"]
[EventCountry "GER"]
[SourceTitle "playchess.com"]
[Source "ChessBase"]
[SourceQuality "1"]
[TimeControl "900+10"]

1. Nf3 {[%emt 0:00:00]} g6 {[%emt 0:00:00]} 2. e4 {[%emt 0:00:00]} Bg7 {[%emt 0:00:03]} 3. d4 {[%emt 0:00:00]} d6 {[%emt 0:00:01]} 4. c3 {[%emt 0:00:00]} Nf6 {[%emt 0:00:15]} 5. Bd3 {[%emt 0:00:02]} O-O {[%emt 0:00:06]} 6. h3 {[%emt 0:00:02]} Nc6 {[%emt 0:00:14]} 7. O-O {[%emt 0:00:04]} e5 {[%emt 0:00:04]} 8. Re1 {[%emt 0:00:29]} h6 {[%emt 0:00:38]} 9. Na3 {[%emt 0:00:26]} Nh5 {[%emt 0:02:05]} 10. Nc2 {[%emt 0:00:47]} Qf6 {[%emt 0:00:44]} 11. Bf1 {[%emt 0:03:14]} Nf4 {[%emt 0:01:37]} 12. Kh2 {[%emt 0:01:22]} Re8 {[%emt 0:03:10]} 13. g3 {[%emt 0:00:37]} Nh5 {[%emt 0:00:14]} 14. d5 {[%emt 0:00:11]} Nb8 {[%emt 0:01:17]} 15. Ne3 {[%emt 0:00:02]} Qe7 {[%emt 0:00:16]} 16. Bg2 {[%emt 0:01:13]} Nd7 {[%emt 0:00:52]} 17. Ng1 {[%emt 0:02:06]} a5 {[%emt 0:01:16]} 18. a4 {[%emt 0:00:07]} Kh7 {[%emt 0:00:29]} 19. b4 {[%emt 0:00:19]} Nhf6 {[%emt 0:00:31]} 20. Bb2 {[%emt 0:00:48]} Ng8 {[%emt 0:00:19]} 21. Ne2 {[%emt 0:00:15]} Nb6 {[%emt 0:00:31]} 22. Qc2 {[%emt 0:01:50]} Rf8 {[%emt 0:00:26]} 23. g4 {[%emt 0:00:06]} Bf6 {[%emt 0:00:21]} 24. Ng3 {[%emt 0:00:02]} Bg5 {[%emt 0:00:13]} 25. Bf1 {[%emt 0:00:28]} Bf4 {[%emt 0:00:31]} 26. Ng2 {[%emt 0:00:03]} Bg5 {[%emt 0:00:48]} 27. Bd3 {[%emt 0:00:48]} Bd7 {[%emt 0:00:07]} 28. Qb3 {[%emt 0:00:16]} Rfb8 {[%emt 0:00:19]} 29. c4 {[%emt 0:00:15]} axb4 {[%emt 0:00:20]} 30. a5 {[%emt 0:00:00]} Nc8 {[%emt 0:00:05]} 31. Qxb4 {[%emt 0:00:10]} b6 {[%emt 0:00:28]} 32. a6 {[%emt 0:00:27]} Na7 {[%emt 0:00:04]} 33. Ra2 {[%emt 0:00:55]} Qe8 {[%emt 0:00:16]} 34. Qc3 {[%emt 0:00:15]} Bf6 {[%emt 0:00:26]} 35. Rb1 {[%emt 0:00:15]} Qe7 {[%emt 0:00:03]} 36. f3 {[%emt 0:00:10]} Rf8 {[%emt 0:00:08]} 37. Rh1 {[%emt 0:00:14]} Rfb8 {[%emt 0:00:12]} 38. h4 {[%emt 0:00:06]} b5 {[%emt 0:00:24]} 39. h5 {[%emt 0:00:08]} c6 {[%emt 0:00:23]} 40. hxg6+ {[%emt 0:01:21]} fxg6 {[%emt 0:00:03]} 41. Rd1 {[%emt 0:00:06]} c5 {[%emt 0:00:12]} 42. Bc1 {[%emt 0:00:23]} b4 {[%emt 0:00:12]} 43. Qb3 Bg5 {[%emt 0:00:12]} 44. Bc2 {[%emt 0:00:22]} Rb6 {[%emt 0:00:12]} 45. Be3 {[%emt 0:00:07]} Bxe3 {[%emt 0:00:10]} 46. Qxe3 {[%emt 0:00:04]} Nc8 {[%emt 0:00:16]} 47. Rda1 {[%emt 0:00:02]} Ra7 {[%emt 0:00:03]} 48. Bd1 {[%emt 0:00:24]} Be8 {[%emt 0:00:05]} 49. f4 {[%emt 0:00:03]} exf4 {[%emt 0:00:20]} 50. Nxf4 {[%emt 0:00:03]} Qh4+ {[%emt 0:00:09]} 51. Kg1 {[%emt 0:00:06]} Qg5 {[%emt 0:00:19]} 52. Qd2 {[%emt 0:00:19]} Nf6 {[%emt 0:00:00]} 53. Qe3 {[%emt 0:00:39]} Bd7 {[%emt 0:00:11]} 54. e5 {[%emt 0:00:06]} dxe5 {[%emt 0:00:15]} 55. Ng2 {[%emt 0:00:00]} Nd6 {[%emt 0:00:20]} 56. Qxc5 {[%emt 0:00:06]} Nc8 {[%emt 0:00:10]} 57. Qe3 {[%emt 0:00:23]} Bxg4 {[%emt 0:00:17]} 58. Qxg5 {[%emt 0:00:04]} hxg5 {[%emt 0:00:01]} 59. Bxg4 {[%emt 0:00:12]} Nxg4 {[%emt 0:00:01]} 60. Ne4 {[%emt 0:00:03]} b3 {[%emt 0:00:15]} 61. c5 {[%emt 0:00:12]} bxa2 {[%emt 0:00:08]} 62. cxb6 {[%emt 0:00:01]} Nxb6 {[%emt 0:00:02]} 63. Rxa2 {[%emt 0:00:05]} Nxd5 {[%emt 0:00:06]} 64. Ra4 {[%emt 0:00:20]} Ngf6 {[%emt 0:00:14]} 65. Nxg5+ {[%emt 0:00:11]} Kg7 {[%emt 0:00:10]} 66. Ne6+ {[%emt 0:00:05]} Kf7 {[%emt 0:00:14]} 67. Nd8+ {[%emt 0:00:00]} Ke8 {[%emt 0:00:08]} 68. Nc6 {[%emt 0:00:01]} Ra8 {[%emt 0:00:03]} 69. Nxe5 {[%emt 0:00:01]} Nc7 {[%emt 0:00:14]} 70. a7 {[%emt 0:00:03]} Nb5 {[%emt 0:00:09]} 71. Ra6 {[%emt 0:00:03]} Nd7 {[%emt 0:00:36]} 72. Rxg6 {[%emt 0:00:10]} Rxa7 {[%emt 0:00:28]} 73. Rg8+ {[%emt 0:00:01]} Ke7 {[%emt 0:00:01]} 74. Nc6+ {[%emt 0:00:01]} Kf7 {[%emt 0:00:03]} 75. Nxa7 {[%emt 0:00:02]} Kxg8 {[%emt 0:00:04]} 76. Nxb5 {[%emt 0:00:01]} Nb6 {[%emt 0:00:02]} 77. Kf2 {[%emt 0:00:01]} Na4 {[%emt 0:00:01]} 78. Ke3 {[%emt 0:00:02]} Nb6 {[%emt 0:00:01]} 79. Kf4 {[%emt 0:00:01]} Kf7 {[%emt 0:00:01]} 80. Kf5 {[%emt 0:00:03]} Ke7 {[%emt 0:00:04]} 81. Nf4 {[%emt 0:00:02]} Kd7 {[%emt 0:00:03]} 82. Ke5 {[%emt 0:00:02]} Kc6 {[%emt 0:00:04]} 83. Nd4+ {[%emt 0:00:01]} Kc5 {[%emt 0:00:03]} 84. Nd3+ {[%emt 0:00:02]} Kc4 {[%emt 0:00:01]} 85. Ke4 {[%emt 0:00:01]} Na4 {[%emt 0:00:06]} 86. Ne5+ {[%emt 0:00:05]} Kc5 {[%emt 0:00:04]} 87. Ne6+ {[%emt 0:00:04]} 1/2-1/2

[Event "46th GER-ch Rapid 2020"]
[Site "Plochingen"]
[Date "2020.09.19"]
[Round "1.2"]
[White "Pallas, Sebastian"]
[Black "Schmaltz, Roland"]
[Result "0-1"]
[ECO "C41"]
[WhiteElo "2315"]
[BlackElo "2449"]
[Annotator "ChessBase"]
[PlyCount "106"]
[EventDate "2020.09.19"]
[EventType "swiss"]
[EventCountry "GER"]
[SourceTitle "playchess.com"]
[Source "ChessBase"]
[SourceQuality "1"]
[TimeControl "900+10"]

1. e4 {[%emt 0:00:00]} d6 {[%emt 0:00:00]} 2. d4 {[%emt 0:00:15]} Nf6 {[%emt 0:00:00]} 3. Nc3 {[%emt 0:00:11]} e5 {[%emt 0:00:00]} 4. Nf3 {[%emt 0:00:42]} Nbd7 {[%emt 0:00:00]} 5. Be2 {[%emt 0:01:15]} Be7 {[%emt 0:00:00]} 6. O-O {[%emt 0:00:39]} O-O {[%emt 0:00:03]} 7. Re1 {[%emt 0:00:46]} a6 {[%emt 0:00:09]} 8. a4 {[%emt 0:00:50]} b6 {[%emt 0:00:03]} 9. Bg5 {[%emt 0:01:00]} Bb7 {[%emt 0:00:22]} 10. Bf1 {[%emt 0:00:14]} h6 {[%emt 0:00:32]} 11. Bh4 {[%emt 0:00:41]} Re8 {[%emt 0:01:06]} 12. Bg3 exd4 {[%emt 0:01:04]} 13. Nxd4 {[%emt 0:01:27]} Bf8 {[%emt 0:00:15]} 14. f3 {[%emt 0:00:19]} g6 {[%emt 0:00:31]} 15. Qd2 {[%emt 0:00:20]} Bg7 {[%emt 0:04:02]} 16. Rad1 {[%emt 0:00:21]} Nh5 {[%emt 0:00:37]} 17. Bf2 {[%emt 0:00:13]} Ne5 {[%emt 0:00:02]} 18. Be2 {[%emt 0:01:06]} Nf6 {[%emt 0:00:07]} 19. Bg3 {[%emt 0:00:19]} Nc6 {[%emt 0:01:00]} 20. Bf2 {[%emt 0:00:57]} Nb4 {[%emt 0:01:27]} 21. Bc4 {[%emt 0:01:03]} Qe7 {[%emt 0:02:00]} 22. Nde2 {[%emt 0:00:51]} Rad8 {[%emt 0:00:31]} 23. Nf4 {[%emt 0:00:24]} Kh7 {[%emt 0:00:08]} 24. Bd4 {[%emt 0:01:12]} c5 {[%emt 0:01:34]} 25. Bf2 {[%emt 0:00:10]} Qf8 {[%emt 0:00:32]} 26. Bb3 {[%emt 0:00:31]} Rd7 {[%emt 0:00:45]} 27. h4 {[%emt 0:00:41]} Red8 {[%emt 0:00:09]} 28. Qe2 {[%emt 0:00:37]} Qe8 {[%emt 0:00:26]} 29. Bg3 {[%emt 0:00:25]} Nc6 {[%emt 0:00:08]} 30. Bc4 {[%emt 0:00:28]} Nd4 {[%emt 0:00:06]} 31. Qf2 {[%emt 0:00:02]} Re7 {[%emt 0:00:19]} 32. Bd5 {[%emt 0:00:20]} Bc8 {[%emt 0:00:26]} 33. Bc4 {[%emt 0:00:19]} Bb7 {[%emt 0:00:05]} 34. Bd5 {[%emt 0:00:04]} Bc8 {[%emt 0:00:01]} 35. Bc4 {[%emt 0:00:08]} b5 {[%emt 0:00:06]} 36. axb5 {[%emt 0:00:01]} axb5 {[%emt 0:00:01]} 37. Bf1 {[%emt 0:00:02]} Bb7 {[%emt 0:00:06]} 38. Qd2 {[%emt 0:00:25]} b4 {[%emt 0:00:09]} 39. Nce2 {[%emt 0:00:08]} Nc6 {[%emt 0:00:26]} 40. Bf2 {[%emt 0:00:09]} Red7 {[%emt 0:00:10]} 41. c4 {[%emt 0:00:15]} Ne5 {[%emt 0:00:08]} 42. b3 {[%emt 0:00:05]} Ra8 {[%emt 0:00:20]} 43. Ng3 {[%emt 0:00:15]} Ra3 {[%emt 0:00:10]} 44. Qe3 {[%emt 0:00:17]} h5 {[%emt 0:00:06]} 45. Nh3 {[%emt 0:00:12]} Kg8 {[%emt 0:00:05]} 46. Ng5 {[%emt 0:00:08]} Bc6 {[%emt 0:00:21]} 47. Rc1 {[%emt 0:00:20]} Qe7 {[%emt 0:00:04]} 48. Rb1 {[%emt 0:00:15]} Bh6 {[%emt 0:00:03]} 49. Qe2 {[%emt 0:00:14]} Rda7 {[%emt 0:00:05]} 50. Red1 {[%emt 0:00:05]} Nh7 {[%emt 0:00:17]} 51. Be3 {[%emt 0:00:25]} Ra2 {[%emt 0:00:12]} 52. Rb2 {[%emt 0:00:09]} Rxb2 {[%emt 0:00:09]} 53. Qxb2 {[%emt 0:00:01]} Nxg5 {[%emt 0:00:00]} 0-1

[Event "46th GER-ch Rapid 2020"]
[Site "Plochingen"]
[Date "2020.09.19"]
[Round "1.3"]
[White "Gschnitzer, Oswald"]
[Black "Maier, Christian"]
[Result "1-0"]
[ECO "A54"]
[WhiteElo "2373"]
[BlackElo "2295"]
[Annotator "ChessBase"]
[PlyCount "26"]
[EventDate "2020.09.19"]
[EventType "swiss"]
[EventCountry "GER"]
[SourceTitle "playchess.com"]
[Source "ChessBase"]
[SourceQuality "1"]
[TimeControl "900+10"]

1. Nf3 {[%emt 0:00:00]} d6 {[%emt 0:00:08]} 2. d4 {[%emt 0:00:00]} Nf6 {[%emt 0:00:09]} 3. c4 {[%emt 0:00:03]} Nbd7 {[%emt 0:00:20]} 4. Nc3 {[%emt 0:00:05]} e5 {[%emt 0:00:03]} 5. Bg5 {[%emt 0:00:04]} Be7 {[%emt 0:00:04]} 6. Qc2 {[%emt 0:00:05]} c6 {[%emt 0:00:23]} 7. O-O-O {[%emt 0:00:31]} Qc7 {[%emt 0:00:26]} 8. e3 {[%emt 0:00:10]} a6 {[%emt 0:01:13]} 9. Kb1 {[%emt 0:00:38]} O-O {[%emt 0:00:20]} 10. Bd3 {[%emt 0:00:03]} Re8 {[%emt 0:01:09]} 11. g4 {[%emt 0:00:38]} Nf8 {[%emt 0:00:43]} 12. Bxf6 {[%emt 0:00:44]} Bxf6 {[%emt 0:00:02]} 13. g5 {[%emt 0:00:01]} Be7 {[%emt 0:00:23]} 1-0

[Event "46th GER-ch Rapid 2020"]
[Site "Plochingen"]
[Date "2020.09.19"]
[Round "1.4"]
[White "Kersten, Uwe"]
[Black "Siebrecht, Sebastian"]
[Result "1/2-1/2"]
[ECO "B22"]
[WhiteElo "2252"]
[BlackElo "2418"]
[Annotator "ChessBase"]
[PlyCount "100"]
[EventDate "2020.09.19"]
[EventType "swiss"]
[EventCountry "GER"]
[SourceTitle "playchess.com"]
[Source "ChessBase"]
[SourceQuality "1"]
[TimeControl "900+10"]

1. e4 {[%emt 0:00:00]} c5 {[%emt 0:00:00]} 2. Nf3 {[%emt 0:00:02]} e6 {[%emt 0:00:00]} 3. c3 {[%emt 0:00:20]} Nf6 {[%emt 0:00:00]} 4. e5 {[%emt 0:00:07]} Nd5 {[%emt 0:00:00]} 5. d4 {[%emt 0:00:26]} cxd4 {[%emt 0:00:00]} 6. cxd4 {[%emt 0:00:03]} d6 {[%emt 0:00:03]} 7. a3 {[%emt 0:00:27]} Nc6 {[%emt 0:00:07]} 8. Bd3 {[%emt 0:00:12]} Be7 {[%emt 0:00:09]} 9. O-O {[%emt 0:00:15]} O-O {[%emt 0:00:02]} 10. Qe2 {[%emt 0:00:19]} a6 {[%emt 0:00:12]} 11. Re1 {[%emt 0:00:40]} Re8 {[%emt 0:02:42]} 12. Qe4 {[%emt 0:01:03]} f5 {[%emt 0:02:23]} 13. exf6 {[%emt 0:00:14]} Nxf6 {[%emt 0:00:01]} 14. Qh4 {[%emt 0:00:18]} h6 {[%emt 0:00:09]} 15. Bxh6 {[%emt 0:03:59]} gxh6 {[%emt 0:00:03]} 16. Qxh6 {[%emt 0:00:04]} Bf8 {[%emt 0:00:39]} 17. Qg6+ {[%emt 0:00:12]} Bg7 {[%emt 0:00:02]} 18. Ng5 {[%emt 0:02:11]} Qe7 {[%emt 0:00:58]} 19. Nc3 {[%emt 0:00:20]} Nxd4 {[%emt 0:03:17]} 20. Re3 {[%emt 0:01:49]} Bd7 {[%emt 0:01:16]} 21. Rh3 {[%emt 0:00:47]} Bc6 {[%emt 0:02:35]} 22. Re1 {[%emt 0:00:06]} b5 {[%emt 0:00:42]} 23. Nce4 {[%emt 0:00:06]} Bxe4 {[%emt 0:00:38]} 24. Rxe4 {[%emt 0:00:02]} Rac8 {[%emt 0:02:39]} 25. Rxd4 {[%emt 0:00:35]} Rc1+ {[%emt 0:00:01]} 26. Bf1 {[%emt 0:00:03]} Qc7 {[%emt 0:00:09]} 27. Rc3 {[%emt 0:02:42]} Rxc3 {[%emt 0:00:02]} 28. bxc3 {[%emt 0:00:01]} d5 {[%emt 0:00:13]} 29. Rh4 {[%emt 0:00:30]} Re7 {[%emt 0:00:34]} 30. Nh7 {[%emt 0:01:22]} Qxc3 {[%emt 0:00:03]} 31. h3 {[%emt 0:00:13]} Qe5 {[%emt 0:00:17]} 32. Bd3 {[%emt 0:00:09]} Nxh7 {[%emt 0:00:06]} 33. Rxh7 {[%emt 0:00:15]} Qe1+ {[%emt 0:00:07]} 34. Kh2 {[%emt 0:00:01]} Qe5+ {[%emt 0:00:02]} 35. g3 {[%emt 0:00:09]} Kf8 {[%emt 0:00:04]} 36. Rh4 {[%emt 0:00:14]} Rf7 {[%emt 0:00:01]} 37. Kg2 {[%emt 0:00:12]} Qe1 {[%emt 0:00:02]} 38. Rf4 {[%emt 0:00:18]} Rxf4 {[%emt 0:00:11]} 39. gxf4 {[%emt 0:00:01]} Bd4 {[%emt 0:00:14]} 40. Qg3 {[%emt 0:00:22]} Qd1 {[%emt 0:00:09]} 41. Bg6 {[%emt 0:00:13]} Ke7 {[%emt 0:00:07]} 42. f5 {[%emt 0:00:08]} e5 {[%emt 0:00:22]} 43. Qg5+ {[%emt 0:00:06]} Kd7 {[%emt 0:00:07]} 44. Qf6 {[%emt 0:00:18]} Qd2 {[%emt 0:00:08]} 45. Qe6+ {[%emt 0:00:10]} Kc7 {[%emt 0:00:02]} 46. Qe7+ {[%emt 0:00:02]} Kb6 {[%emt 0:00:30]} 47. Qd8+ {[%emt 0:00:08]} Ka7 {[%emt 0:00:08]} 48. Qc7+ {[%emt 0:00:08]} Ka8 {[%emt 0:00:02]} 49. Qc8+ {[%emt 0:00:28]} Ka7 {[%emt 0:00:01]} 50. Qc7+ {[%emt 0:00:10]} Ka8 {[%emt 0:00:00]} 1/2-1/2

[Event "46th GER-ch Rapid 2020"]
[Site "Plochingen"]
[Date "2020.09.19"]
[Round "1.5"]
[White "Hirneise, Jens"]
[Black "Voigt, Martin"]
[Result "1-0"]
[ECO "B14"]
[WhiteElo "2289"]
[BlackElo "2289"]
[Annotator "ChessBase"]
[PlyCount "133"]
[EventDate "2020.09.19"]
[EventType "swiss"]
[EventCountry "GER"]
[SourceTitle "playchess.com"]
[Source "ChessBase"]
[SourceQuality "1"]
[TimeControl "900+10"]

1. e4 {[%emt 0:00:00]} c6 {[%emt 0:00:00]} 2. d4 {[%emt 0:00:00]} d5 {[%emt 0:00:00]} 3. exd5 {[%emt 0:00:00]} cxd5 {[%emt 0:00:00]} 4. c4 {[%emt 0:00:00]} Nf6 {[%emt 0:00:00]} 5. Nc3 {[%emt 0:00:00]} g6 {[%emt 0:00:00]} 6. cxd5 {[%emt 0:00:00]} Bg7 {[%emt 0:00:00]} 7. Nf3 {[%emt 0:00:11]} O-O {[%emt 0:00:26]} 8. Bc4 {[%emt 0:01:49]} Bg4 {[%emt 0:00:39]} 9. h3 {[%emt 0:00:05]} Bxf3 {[%emt 0:00:02]} 10. Qxf3 {[%emt 0:00:01]} Ne8 {[%emt 0:00:10]} 11. O-O {[%emt 0:00:37]} Nd6 {[%emt 0:00:12]} 12. Bd3 {[%emt 0:00:13]} Bxd4 {[%emt 0:01:02]} 13. Bf4 {[%emt 0:00:26]} Nd7 {[%emt 0:00:47]} 14. Rfe1 {[%emt 0:00:20]} Rc8 {[%emt 0:00:56]} 15. Bf1 {[%emt 0:00:28]} Bg7 {[%emt 0:00:21]} 16. Qe3 {[%emt 0:00:38]} Nf5 {[%emt 0:02:44]} 17. Qxa7 {[%emt 0:01:46]} Qb6 {[%emt 0:00:29]} 18. Qxb6 {[%emt 0:00:30]} Nxb6 {[%emt 0:00:01]} 19. Be5 {[%emt 0:00:30]} Bf6 {[%emt 0:03:42]} 20. Rad1 {[%emt 0:02:23]} Rfd8 {[%emt 0:00:04]} 21. Bxf6 {[%emt 0:01:15]} exf6 {[%emt 0:00:02]} 22. Re4 {[%emt 0:00:06]} Nd6 {[%emt 0:01:29]} 23. Rb4 {[%emt 0:00:03]} Nd7 {[%emt 0:00:35]} 24. Nb5 {[%emt 0:00:59]} Nc5 {[%emt 0:00:34]} 25. Rc1 {[%emt 0:00:55]} Nce4 {[%emt 0:01:27]} 26. Rxc8 {[%emt 0:01:42]} Rxc8 {[%emt 0:00:01]} 27. f3 {[%emt 0:00:36]} Nxb5 {[%emt 0:00:37]} 28. Rxb5 {[%emt 0:00:01]} Nd6 {[%emt 0:01:56]} 29. Rb6 {[%emt 0:00:06]} Rd8 {[%emt 0:00:01]} 30. a4 {[%emt 0:00:19]} Kf8 {[%emt 0:00:03]} 31. Kf2 {[%emt 0:01:28]} Ke7 {[%emt 0:00:03]} 32. Rb3 {[%emt 0:00:24]} f5 {[%emt 0:00:18]} 33. Ke3 {[%emt 0:00:11]} Ra8 {[%emt 0:00:44]} 34. Rb4 {[%emt 0:00:17]} Kd7 {[%emt 0:00:16]} 35. Bd3 {[%emt 0:00:26]} Kc7 {[%emt 0:00:02]} 36. b3 {[%emt 0:00:11]} f6 {[%emt 0:00:16]} 37. Rh4 {[%emt 0:00:13]} h5 {[%emt 0:00:11]} 38. g4 {[%emt 0:00:12]} fxg4 {[%emt 0:00:23]} 39. hxg4 {[%emt 0:00:30]} hxg4 {[%emt 0:00:10]} 40. fxg4 {[%emt 0:00:03]} g5 {[%emt 0:00:09]} 41. Rh7+ {[%emt 0:00:06]} Kb6 {[%emt 0:00:02]} 42. Kd4 {[%emt 0:00:03]} Rc8 {[%emt 0:00:33]} 43. Rd7 {[%emt 0:00:21]} Ne8 {[%emt 0:00:05]} 44. Bg6 {[%emt 0:00:05]} Nc7 {[%emt 0:00:32]} 45. Rd6+ {[%emt 0:00:01]} Ka5 {[%emt 0:00:04]} 46. Rxf6 {[%emt 0:00:09]} Rd8 {[%emt 0:00:04]} 47. Be4 {[%emt 0:00:18]} b5 {[%emt 0:00:06]} 48. axb5 {[%emt 0:00:14]} Nxb5+ {[%emt 0:00:04]} 49. Ke5 {[%emt 0:00:30]} Kb4 {[%emt 0:00:12]} 50. Bd3 {[%emt 0:00:25]} Nc3 {[%emt 0:00:14]} 51. Bc4 {[%emt 0:00:06]} Nd1 {[%emt 0:00:26]} 52. Kd4 {[%emt 0:00:12]} Nc3 {[%emt 0:00:03]} 53. Rb6+ {[%emt 0:00:19]} Ka5 {[%emt 0:00:01]} 54. Rg6 {[%emt 0:00:05]} Kb4 {[%emt 0:00:07]} 55. Rxg5 {[%emt 0:00:05]} Re8 {[%emt 0:00:02]} 56. Re5 {[%emt 0:00:07]} Rf8 {[%emt 0:00:04]} 57. Rf5 {[%emt 0:00:10]} Re8 {[%emt 0:00:04]} 58. Rf4 {[%emt 0:00:06]} Re1 {[%emt 0:00:06]} 59. g5 {[%emt 0:00:25]} Rg1 {[%emt 0:00:07]} 60. Rf5 {[%emt 0:00:02]} Rg4+ {[%emt 0:00:08]} 61. Ke5 {[%emt 0:00:07]} Kc5 {[%emt 0:00:12]} 62. Kf6 {[%emt 0:00:18]} Ne4+ {[%emt 0:00:18]} 63. Kg6 {[%emt 0:00:08]} Nd6 {[%emt 0:00:02]} 64. Rf8 {[%emt 0:00:09]} Rg1 {[%emt 0:00:22]} 65. Kh6 {[%emt 0:00:18]} Kd4 {[%emt 0:00:15]} 66. Rf6 {[%emt 0:00:13]} Ke5 {[%emt 0:00:07]} 67. Re6+ {[%emt 0:00:01]} 1-0

[Event "46th GER-ch Rapid 2020"]
[Site "Plochingen"]
[Date "2020.09.19"]
[Round "1.6"]
[White "Lang, Torsten"]
[Black "Kvetny, Mark"]
[Result "0-1"]
[ECO "A43"]
[WhiteElo "2308"]
[BlackElo "2427"]
[Annotator "ChessBase"]
[PlyCount "114"]
[EventDate "2020.09.19"]
[EventType "swiss"]
[EventCountry "GER"]
[SourceTitle "playchess.com"]
[Source "ChessBase"]
[SourceQuality "1"]
[TimeControl "900+10"]

1. d4 {[%emt 0:00:00]} Nf6 {[%emt 0:00:00]} 2. Nf3 {[%emt 0:00:00]} c5 {[%emt 0:00:10]} 3. d5 {[%emt 0:00:04]} d6 {[%emt 0:00:05]} 4. Nc3 {[%emt 0:00:06]} e6 {[%emt 0:00:07]} 5. g3 {[%emt 0:00:38]} exd5 {[%emt 0:01:43]} 6. Nxd5 {[%emt 0:00:04]} Nxd5 {[%emt 0:00:15]} 7. Qxd5 {[%emt 0:00:04]} Nc6 {[%emt 0:00:08]} 8. Ng5 {[%emt 0:02:16]} Qe7 {[%emt 0:01:09]} 9. c3 {[%emt 0:04:27]} h6 {[%emt 0:00:27]} 10. Nf3 {[%emt 0:00:08]} Be6 {[%emt 0:00:08]} 11. Qd3 {[%emt 0:00:20]} g5 {[%emt 0:02:42]} 12. Bg2 {[%emt 0:00:09]} Bg7 {[%emt 0:00:02]} 13. O-O {[%emt 0:00:10]} Rd8 {[%emt 0:00:26]} 14. e4 {[%emt 0:01:02]} O-O {[%emt 0:00:08]} 15. Re1 {[%emt 0:01:00]} Qd7 {[%emt 0:00:39]} 16. Be3 {[%emt 0:00:15]} b6 {[%emt 0:00:47]} 17. Rad1 {[%emt 0:00:40]} Bxa2 {[%emt 0:01:06]} 18. h4 {[%emt 0:01:11]} g4 {[%emt 0:00:19]} 19. Nd2 {[%emt 0:00:30]} Ne5 {[%emt 0:00:09]} 20. Qe2 {[%emt 0:00:16]} Be6 {[%emt 0:00:14]} 21. Bf4 {[%emt 0:00:15]} Ng6 {[%emt 0:01:06]} 22. Be3 {[%emt 0:00:11]} h5 {[%emt 0:00:49]} 23. Nc4 {[%emt 0:00:28]} Qe7 {[%emt 0:01:11]} 24. Bg5 {[%emt 0:00:12]} f6 {[%emt 0:00:12]} 25. Bc1 {[%emt 0:00:05]} Ne5 {[%emt 0:00:58]} 26. Ne3 {[%emt 0:00:09]} Qf7 {[%emt 0:00:01]} 27. Nf5 {[%emt 0:01:04]} Bxf5 {[%emt 0:00:17]} 28. exf5 {[%emt 0:00:02]} d5 {[%emt 0:00:02]} 29. Bf4 {[%emt 0:00:35]} Rfe8 {[%emt 0:00:05]} 30. Qb5 {[%emt 0:00:14]} Kh7 {[%emt 0:00:57]} 31. b4 {[%emt 0:00:23]} Bf8 {[%emt 0:00:26]} 32. bxc5 {[%emt 0:00:20]} Bxc5 {[%emt 0:00:06]} 33. Be3 {[%emt 0:00:17]} Bxe3 {[%emt 0:01:07]} 34. Rxe3 {[%emt 0:00:02]} Qd7 {[%emt 0:00:37]} 35. Qb3 {[%emt 0:00:48]} Qxf5 {[%emt 0:00:17]} 36. Rxd5 {[%emt 0:00:15]} Kg7 {[%emt 0:00:09]} 37. Qd1 {[%emt 0:00:34]} Qc8 {[%emt 0:00:23]} 38. Qd4 {[%emt 0:00:24]} Rxd5 {[%emt 0:00:08]} 39. Bxd5 {[%emt 0:00:09]} Qc5 {[%emt 0:00:13]} 40. Qxc5 {[%emt 0:00:26]} bxc5 {[%emt 0:00:01]} 41. c4 {[%emt 0:00:06]} Nf3+ {[%emt 0:00:36]} 42. Kf1 {[%emt 0:00:01]} Rxe3 {[%emt 0:00:12]} 43. fxe3 {[%emt 0:00:02]} f5 {[%emt 0:00:17]} 44. Ke2 {[%emt 0:00:04]} a5 {[%emt 0:00:04]} 45. Bc6 {[%emt 0:00:18]} Kf6 {[%emt 0:00:11]} 46. Be8 {[%emt 0:00:14]} Ne5 {[%emt 0:00:09]} 47. Bb5 {[%emt 0:00:11]} Nf7 {[%emt 0:00:10]} 48. Kd3 {[%emt 0:00:26]} Nd6 {[%emt 0:00:02]} 49. Bc6 {[%emt 0:00:18]} Ke5 {[%emt 0:00:30]} 50. Kc3 {[%emt 0:00:56]} Ne4+ {[%emt 0:00:06]} 51. Kb3 {[%emt 0:00:03]} Nd2+ {[%emt 0:00:13]} 52. Kc3 {[%emt 0:00:20]} Ne4+ {[%emt 0:00:02]} 53. Kb3 {[%emt 0:00:01]} Nxg3 {[%emt 0:00:01]} 54. Ka4 {[%emt 0:00:02]} Nf1 {[%emt 0:00:11]} 55. Kxa5 {[%emt 0:00:17]} Nxe3 {[%emt 0:00:02]} 56. Kb5 {[%emt 0:00:03]} f4 {[%emt 0:00:12]} 57. Kxc5 {[%emt 0:00:05]} f3 {[%emt 0:00:01]} 0-1

[Event "46th GER-ch Rapid 2020"]
[Site "Plochingen"]
[Date "2020.09.19"]
[Round "1.7"]
[White "Langrock, Hannes"]
[Black "Schenderowitsch, Michael"]
[Result "1/2-1/2"]
[ECO "E11"]
[WhiteElo "2352"]
[BlackElo "2346"]
[Annotator "ChessBase"]
[PlyCount "58"]
[EventDate "2020.09.19"]
[EventType "swiss"]
[EventCountry "GER"]
[SourceTitle "playchess.com"]
[Source "ChessBase"]
[SourceQuality "1"]
[TimeControl "900+10"]

1. d4 {[%emt 0:00:00]} e6 {[%emt 0:00:00]} 2. c4 {[%emt 0:00:00]} Nf6 {[%emt 0:00:00]} 3. g3 {[%emt 0:00:00]} Bb4+ {[%emt 0:00:00]} 4. Bd2 {[%emt 0:00:00]} c5 {[%emt 0:00:00]} 5. Nf3 {[%emt 0:00:29]} O-O {[%emt 0:00:03]} 6. Bg2 {[%emt 0:00:06]} d6 {[%emt 0:00:04]} 7. O-O {[%emt 0:00:20]} Nc6 {[%emt 0:00:09]} 8. Bxb4 {[%emt 0:01:34]} cxb4 {[%emt 0:00:02]} 9. a3 {[%emt 0:00:07]} Re8 {[%emt 0:00:55]} 10. axb4 {[%emt 0:00:15]} Nxb4 {[%emt 0:00:04]} 11. Nc3 {[%emt 0:00:13]} Bd7 {[%emt 0:01:37]} 12. b3 {[%emt 0:00:51]} Qc7 {[%emt 0:02:21]} 13. Qd2 {[%emt 0:00:15]} a5 {[%emt 0:00:24]} 14. e4 {[%emt 0:00:20]} e5 {[%emt 0:00:39]} 15. h3 {[%emt 0:00:10]} Red8 {[%emt 0:02:11]} 16. Kh2 {[%emt 0:00:16]} h6 {[%emt 0:00:22]} 17. Rac1 {[%emt 0:00:43]} Qb6 {[%emt 0:01:04]} 18. Rfe1 {[%emt 0:00:29]} Na6 {[%emt 0:01:34]} 19. Rb1 {[%emt 0:00:46]} Qb4 {[%emt 0:00:55]} 20. Qe3 {[%emt 0:00:42]} Re8 {[%emt 0:00:40]} 21. Red1 {[%emt 0:01:09]} Bc6 {[%emt 0:02:14]} 22. Ne1 {[%emt 0:00:40]} Qb6 {[%emt 0:00:11]} 23. Nc2 {[%emt 0:00:25]} Qc7 {[%emt 0:00:15]} 24. Na3 {[%emt 0:01:26]} Rad8 {[%emt 0:00:41]} 25. Nab5 {[%emt 0:00:36]} Bxb5 {[%emt 0:00:27]} 26. Nxb5 {[%emt 0:00:12]} Qb6 {[%emt 0:00:29]} 27. Rd2 {[%emt 0:01:10]} Nc7 {[%emt 0:00:19]} 28. Nc3 {[%emt 0:00:42]} Ne6 {[%emt 0:00:13]} 29. Nb5 {[%emt 0:01:27]} Nc7 {[%emt 0:00:10]} 1/2-1/2